Workbook

Sheet גיליון1
A1: # | C1: שם בית הספר | D1: שם המקצוע | E1: חוזה חתום הגיע מביה"ס בתאריך | F1: בקשה למפקח הועברה להדפסה בתאריך | G1: בקשה נשלחה מהמחוז למפקח ב: | H1: פער בימים בין תאריך הגעת החוזה החתום לבין שליחת הבקשה מהמחוז למפקח: | I1: המלצת הפיקוח חזרה ב: | J1: פער בימים בין שליחת הבקשה מהמחוז למפקד להמלצת הפיקוח בחזרה: | K1: המלצת הפיקוח לאישורו של מנהל ב: | L1: אישור פיקוח הועבר להדפסה ב: | M1: יש פיקוח | N1: אישור פיקוח הועבר להדפסה ב-/ יש פיקוח | O1: פער בימים בין המלצת הפיקוח לאישור הפיקוח: | P1: פער בימים מרגע הגעת החוזה החתום מביה"ס לאישור הפיקוח: | Q1: הערות
A2: 1 | B2: 2542 | C2: מרכז הכשרה מקצועי מלט"ב (חולון) | D2: שרברבות תברואתית 1+2 (מגמה 211) | E2: 2017-12-14 | F2: 2018-01-02 | G2: 2018-01-07 | H2: =G2-E2 -> 24 | I2: 2018-01-10 | J2: =I2-G2 -> 3 | K2: 2018-01-11 | M2: 2018-01-11 | N2: 2018-01-11 | O2: =K2-I2 -> 1 | P2: =N2-E2 -> 28
D3: תחזוקת מבנים וחשמלאי מעשי (מגמה 219) | E3: 2017-12-14 | F3: 2018-01-02 | G3: 2018-01-07 | H3: 24 | I3: 2018-01-10 | J3: 3 | K3: 2018-01-11 | M3: 2018-01-11 | N3: 2018-01-11 | O3: 1 | P3: 28
D4: התקנת מחיצות גבס+ צבעות (מגמה 202) | E4: 2017-12-14 | F4: 2018-01-02 | G4: 2018-01-07 | H4: 24 | I4: 2018-01-10 | J4: 3 | K4: 2018-01-11 | M4: 2018-01-11 | N4: 2018-01-11 | O4: 1 | P4: 28
D5: חשמלאי מוסמך (מסלול מקוצר) (מגמה 1472) | E5: 2017-12-14 | F5: 2018-01-02 | G5: 2018-01-07 | H5: 24 | I5: 2018-01-15 | J5: 8 | K5: 2018-01-23 | M5: 2018-01-24 | N5: 2018-01-24 | O5: 8 | P5: 41
D6: ריתוך טיג פלדה +נירוסטה+אלומניום (מגמה 2142) | E6: 2017-12-14 | F6: 2018-01-02 | G6: 2018-01-07 | H6: 24 | J6: -43107 | O6: 0 | P6: -43083 | Q6: בוטל/ אין תשובה מהפיקוח
D7: תדמיתנות ממוחשבת ( מגמה 1504) | E7: 2017-12-14 | F7: 2018-01-02 | G7: 2018-01-07 | H7: 24 | I7: 2018-02-01 | J7: 25 | K7: 2018-02-11 | M7: 2018-02-12 | N7: 2018-02-12 | O7: 10 | P7: 60
D8: תפירת מוצרי אופנה (מגמה 1567) | E8: 2017-12-14 | F8: 2018-01-08 | G8: 11/01/2018 | H8: 28 | I8: 2018-02-01 | J8: 21 | K8: 2018-02-11 | M8: 2018-02-12 | N8: 2018-02-12 | O8: 10 | P8: 60
D9: קירור ומיזוג אויר וחשמל מעשי (מגמה 1404) | E9: 2017-12-14 | F9: 2018-01-02 | G9: 2018-01-07 | H9: 24 | I9: 2018-01-15 | J9: 8 | K9: 2018-01-23 | M9: 2018-01-24 | N9: 2018-01-24 | O9: 8 | P9: 41
D10: מטפלות\מחנכות לפעוטות במעונות יום סוג 1 (לחסרי רקע) | E10: 2017-12-14 | F10: 2018-01-08 | G10: 2018-01-11 | H10: 28 | I10: 2018-02-01 | J10: 21 | K10: 2018-02-27 | M10: 2018-02-27 | N10: 2018-02-27 | O10: 26 | P10: 75
D11: מטפלות\מחנכות לפעוטות במעונות יום סוג 1 (לבעלי רקע) | E11: 2017-12-14 | F11: 2018-01-08 | G11: 2018-01-11 | H11: 28 | I11: 2018-02-01 | J11: 21 | K11: 2018-02-27 | M11: 2018-02-27 | N11: 2018-02-27 | O11: 26 | P11: 75
D12: ניהול מעון יום (מורחב), מגמה 954 | E12: 2017-12-14 | F12: 2018-01-08 | G12: 2018-01-11 | H12: 28 | I12: 2018-02-01 | J12: 21 | K12: 2018-02-27 | M12: 2018-02-27 | N12: 2018-02-27 | O12: 26 | P12: 75
D13: מיומנויות הדרכה לגיל הרך (מגמה 962) | E13: 2017-12-14 | F13: 2018-01-08 | G13: 2018-01-11 | H13: 28 | I13: 2018-02-01 | J13: 21 | K13: 2018-02-27 | M13: 2018-02-27 | N13: 2018-02-27 | O13: 26 | P13: 75
D14: אוטוטק/אוטוטרוניקה(הכשרה בחניכות), מגמה 2357 | E14: 2017-12-14 | F14: 2018-01-08 | G14: 2018-01-11 | H14: 28 | J14: -43111 | O14: 0 | P14: -43083 | Q14: בוטל/ אין תשובה מהפיקוח
D15: אוטוטרוניקה (מגמה 1206) | E15: 2017-12-14 | F15: 2018-01-08 | G15: 2018-01-11 | H15: 28 | J15: -43111 | O15: 0 | P15: -43083 | Q15: בוטל/ אין תשובה מהפיקוח
D16: מנהלי עבודה (בוגרי קידום מקצועי בבניין), מגמה 245 | E16: 2018-08-14 | F16: 2018-08-15 | H16: -43326 | J16: 0 | O16: 0 | P16: -43326
A17: 2 | B17: 2543 | C17: חיל מודיעין, מגמת חשמל ואלקטרוניקה, ענף תשתיות | D17: חשמלאי מסוייג – אחזקת ציוד תעשייתי לוחות חשמל (מגמה 2925) | E17: 2017-12-28 | F17: 2018-01-02 | G17: 2018-01-07 | H17: 10 | I17: 08/01/2018 | J17: 1 | K17: 2018-01-09 | M17: 2018-02-15 | N17: 2018-02-15 | O17: 1 | P17: 49
D18: חשמלאי מסוייג – מיתוג וחיבור של מערכות גנראטורים, תפעול שוטף (מגמה 2919) | E18: 2017-12-28 | F18: 2018-01-02 | G18: 2018-01-07 | H18: 10 | I18: 08/01/2018 | J18: 1 | K18: 2018-01-09 | M18: 2018-02-15 | N18: 2018-02-15 | O18: 1 | P18: 49
D19: חשמלאי מסוייג – תיקון ושיפוץ מכונות חשמל ומערכות אל פסק (מגמה 2922 ) | E19: 2017-12-28 | F19: 2018-01-02 | G19: 2018-01-07 | H19: 10 | I19: 08/01/2018 | J19: 1 | K19: 2018-01-09 | M19: 2018-02-15 | N19: 2018-02-15 | O19: 1 | P19: 49
D20: חשמלאי מסוייג – אחזקת מערכות קירור ומיזוג אוויר (מגמה 2923 ) | E20: 2017-12-28 | F20: 2018-01-02 | G20: 2018-01-07 | H20: 10 | I20: 08/01/2018 | J20: 1 | K20: 2018-01-09 | M20: 2018-02-15 | N20: 2018-02-15 | O20: 1 | P20: 49
D21: חשמלאי מסוייג – אחזקת מכשור ובקרה אלקטרוני של מערכות מתח נמוך (מגמה 2924) | E21: 2017-12-28 | F21: 2018-01-02 | G21: 2018-01-07 | H21: 10 | I21: 08/01/2018 | J21: 1 | K21: 2018-01-09 | M21: 2018-02-15 | N21: 2018-02-15 | O21: 1 | P21: 49
D22: חשמלאי מסוייג – תפעול מכשיר אלקטרוני של מערכות מתח נמוך מאוד (מגמה 3000) | E22: 2017-12-28 | F22: 2018-01-02 | G22: 2018-01-07 | H22: 10 | I22: 08/01/2018 | J22: 1 | K22: 2018-01-09 | M22: 2018-02-15 | N22: 2018-02-15 | O22: 1 | P22: 49
D23: חשמלאי שירות מגמה 2930 מערכות קירור ומיזוג אויר | E23: 2017-12-28 | F23: 2018-01-02 | G23: 2018-01-07 | H23: 10 | I23: 08/01/2018 | J23: 1 | K23: 2018-01-09 | M23: 2018-02-15 | N23: 2018-02-15 | O23: 1 | P23: 49
D24: חשמלאי שירות,תיקון ושיפוץ מכונות חשמל ומערכות אל פסק,מגמה 2927 | E24: 2017-12-28 | F24: 2018-01-02 | G24: 2018-01-07 | H24: 10 | I24: 08/01/2018 | J24: 1 | K24: 2018-01-09 | M24: 2018-02-15 | N24: 2018-02-15 | O24: 1 | P24: 49
D25: חשמלאי שירות, אחזקת ציוד תעשייתי ולוחות חשמל, מגמה 2929 | E25: 2017-12-28 | F25: 2018-01-02 | G25: 2018-01-07 | H25: 10 | I25: 08/01/2018 | J25: 1 | K25: 2018-01-09 | M25: 2018-02-15 | N25: 2018-02-15 | O25: 1 | P25: 49
D26: חשמלאי שירות, מכשור ובקרה של מערכות מתח נמוך מאוד, מגמה 2926 | E26: 2017-12-28 | F26: 2018-01-02 | G26: 2018-01-07 | H26: 10 | I26: 08/01/2018 | J26: 1 | K26: 2018-01-09 | M26: 2018-02-15 | N26: 2018-02-15 | O26: 1 | P26: 49
D27: חשמלאי שירות,מערכות גנרטורים,מגמה 2928 | E27: 2017-12-28 | F27: 2018-01-02 | G27: 2018-01-07 | H27: 10 | I27: 08/01/2018 | J27: 1 | K27: 2018-01-09 | M27: 2018-02-15 | N27: 2018-02-15 | O27: 1 | P27: 49
D28: חשמלאי ראשי (מקוצר), מגמה 2964 | E28: 2017-12-28 | F28: 2018-01-02 | G28: 2018-01-07 | H28: 10 | I28: 08/01/2018 | J28: 1 | K28: 2018-01-09 | M28: 2018-02-15 | N28: 2018-02-15 | O28: 1 | P28: 49
D29: עבודה בקרבת מתקן חי (מגמה 3132) | E29: 2017-12-28 | F29: 2018-01-02 | G29: 2018-01-07 | H29: 10 | I29: 08/01/2018 | J29: 1 | K29: 2018-01-09 | M29: 2018-02-15 | N29: 2018-02-15 | O29: 1 | P29: 49
D30: חשמלאי מסוייג - אחזקת ציוד חשמל תעשייתי (מגמה 3133) | E30: 2017-12-28 | F30: 2018-01-02 | G30: 2018-01-07 | H30: 10 | I30: 08/01/2018 | J30: 1 | K30: 2018-01-09 | M30: 2018-02-15 | N30: 2018-02-15 | O30: 1 | P30: 49
A31: 3 | B31: 2544 | C31: העמותה להכשרה מקצועית - הייטק ליין | D31: תיב"מ חריטה וכרסום (מגמה 2154) | E31: 2018-01-02 | F31: 2018-01-03 | G31: 2018-01-07 | H31: 5 | I31: 2018-01-29 | J31: 22 | K31: 2018-01-29 | M31: 2018-01-31 | N31: 2018-01-31 | O31: 0 | P31: 29
D32: הבטחת איכות - מדידות מכאניות (מגמה 2181) | E32: 2018-01-02 | F32: 2018-01-03 | G32: 2018-01-07 | H32: 5 | J32: -43107 | O32: 0 | P32: -43102 | Q32: טרם הומלץ
A33: 4 | B33: 2545 | C33: זכרון צבי - לקידום החינוך חרדי לבנות | D33: בודקי תוכנה qa, התמחות istqb (מגמה 3403) | E33: 2017-12-10 | F33: 2018-01-03 | G33: 2018-01-07 | H33: 28 | I33: 18/07/2018 | J33: 192 | K33: 2018-07-18 | M33: 2018-07-18 | N33: 2018-07-18 | O33: 0 | P33: 220 | Q33: 07/01/18 ומחדש 08/07/18
D34: ביצועיסט לתוכנות גרפיות מתקדמות (מגמה 562) | E34: 2017-12-10 | F34: 2018-01-03 | G34: 2018-01-07 | H34: 28 | I34: 2018-01-21 | J34: 14 | K34: 2018-01-23 | M34: 2018-01-24 | N34: 2018-01-24 | O34: 2 | P34: 45 | Q34: טרם הומלץ
D35: מעצב אתרים ואפליקציות (מגמה 566) | E35: 2017-12-10 | F35: 2018-01-03 | G35: 2018-01-07 | H35: 28 | J35: -43107 | O35: 0 | P35: -43079
D36: מעצב גרפי לדפוס (מגמה 561) | E36: 2017-12-10 | F36: 2018-01-03 | G36: 2018-01-07 | H36: 28 | I36: 2018-01-21 | J36: 14 | K36: 2018-01-23 | M36: 2018-01-24 | N36: 2018-01-24 | O36: 2 | P36: 45
D37: צילום וידאו ועריכה (מגמה 507) | E37: 2018-01-11 | F37: 2018-01-11 | G37: 2018-01-11 | H37: 0 | I37: 2018-02-25 | J37: 45 | K37: 2018-02-26 | M37: 2018-02-27 | N37: 2018-02-27 | O37: 1 | P37: 47
D38: מנהל משרד כללי + בכיר (מגמה 8125) | E38: 2018-07-05 | F38: 2018-07-08 | G38: 2018-01-11 | H38: -175 | I38: 2018-09-06 | J38: 238 | K38: 2018-09-13 | M38: 2018-09-16 | N38: 2018-09-16 | O38: 7 | P38: 73
D39: מנהל משרד כללי (מגמה 8123) | E39: 2018-07-05 | F39: 2018-07-08 | G39: 2018-01-11 | H39: -175 | I39: 2018-09-06 | J39: 238 | K39: 2018-09-13 | M39: 2018-09-16 | N39: 2018-09-16 | O39: 7 | P39: 73
D40: מנהל משרד בכיר (מגמה 8124) | E40: 2018-07-05 | F40: 2018-07-08 | G40: 2018-01-11 | H40: -175 | I40: 2018-09-06 | J40: 238 | K40: 2018-09-13 | M40: 2018-09-16 | N40: 2018-09-16 | O40: 7 | P40: 73
A41: 5 | B41: 2546 | C41: סאונד יואב גרא (1994) בע"מ | D41: בקרת קול (סאונד) | E41: 2017-12-28 | F41: 2018-01-03 | G41: 2018-01-07 | H41: 10 | I41: 2018-01-21 | J41: 14 | K41: 2018-01-23 | M41: 2018-01-24 | N41: 2018-01-24 | O41: 2 | P41: 27
D42: צילום דיגיטלי ועיבוד תמונות (מגמה 535) | E42: 2018-07-05 | F42: 2018-07-08 | G42: 2018-07-08 | H42: 3 | I42: 2018-08-19 | J42: 42 | K42: 2018-08-22 | M42: 2018-08-23 | N42: 2018-08-23 | O42: 3 | P42: 49
A43: 6 | B43: 2547 | C43: תדמור ביה"ס המרכזי למלונאות | D43: טבחות סוג 1,2,3,4,5 | E43: 2017-12-05 | F43: 2018-01-03 | G43: 2018-01-07 | H43: 33 | I43: 2018-01-09 | J43: 2 | K43: 2018-01-10 | M43: 2018-01-11 | N43: 2018-01-11 | O43: 1 | P43: 37
D44: בישול מוסדי לפעוטות במעון יום (מגמה 1386) | E44: 2017-12-05 | F44: 2018-01-03 | G44: 2018-01-07 | H44: 33 | I44: 2018-01-09 | J44: 2 | K44: 2018-01-10 | M44: 2018-01-11 | N44: 2018-01-11 | O44: 1 | P44: 37
D45: קונדיטאות ואפייה (מגמה 1382) | E45: 2017-12-05 | F45: 2018-01-03 | G45: 2018-01-07 | H45: 33 | I45: 2018-01-09 | J45: 2 | K45: 2018-01-10 | M45: 2018-01-11 | N45: 2018-01-11 | O45: 1 | P45: 37
A46: 7 | B46: 2548 | C46: לימודי חוץ אס/איי/ בע"מ | D46: מזכירות רפואיות | E46: 2017-12-28 | F46: 2018-01-04 | G46: 2018-01-07 | H46: 10 | I46: 2018-01-11 | J46: 4 | K46: 2018-01-11 | M46: 2018-01-11 | N46: 2018-01-11 | O46: 0 | P46: 14
D47: מנהל חשבונות סוג 1+2 בסיסי ומתקדם | E47: 2017-12-28 | F47: 2018-01-04 | G47: 2018-01-07 | H47: 10 | I47: 2018-01-11 | J47: 4 | K47: 2018-01-11 | M47: 2018-01-11 | N47: 2018-01-11 | O47: 0 | P47: 14
D48: חשבי שכר | E48: 2017-12-28 | F48: 2018-01-04 | G48: 2018-01-07 | H48: 10 | I48: 2018-01-11 | J48: 4 | K48: 2018-01-11 | M48: 2018-01-11 | N48: 2018-01-11 | O48: 0 | P48: 14
D49: מנהל עבודה- עפר ותשתית לכבישים (מגמה 222) | E49: 2017-12-28 | F49: 2018-01-04 | G49: 2018-01-07 | H49: 10 | I49: 2018-01-11 | J49: 4 | K49: 2018-01-11 | M49: 2018-01-11 | N49: 2018-01-11 | O49: 0 | P49: 14
D50: מנהל עבודה בבניין (מגמה 273) | E50: 2017-12-28 | F50: 2018-01-04 | G50: 2018-01-07 | H50: 10 | I50: 2018-01-11 | J50: 4 | K50: 2018-01-11 | M50: 2018-01-11 | N50: 2018-01-11 | O50: 0 | P50: 14
D51: מנהל מדיה חברתית (מגמה 8104) | E51: 2018-02-26 | F51: 2018-02-27 | G51: 27/02/18 | H51: 1 | I51: 27/02/2018 | J51: 0 | K51: 28/02/2018 | M51: 2018-02-28 | N51: 2018-02-28 | O51: 1 | P51: 2
D52: ניהול לוגיסטיקה ושרשרת אספקה (מגמה 8119) | E52: 2018-02-28 | F52: 2018-03-11 | G52: 11/03/18 | H52: 11 | I52: 21/03/2018 | J52: 10 | K52: 21/03/2018 | M52: 22/03/2018 | N52: 22/03/2018 | O52: 0 | P52: 22
D53: ניהול מלאי ורכש (מגמה 8114) | E53: 2018-02-28 | F53: 2018-03-11 | G53: 11/03/18 | H53: 11 | I53: 21/03/2018 | J53: 10 | K53: 21/03/2018 | M53: 22/03/2018 | N53: 22/03/2018 | O53: 0 | P53: 22
D54: מנהל משרד כללי + בכיר (מגמה 8125) | E54: 2018-03-27 | F54: 2018-03-27 | H54: -43186 | I54: 10/04/2018 | J54: 43200 | K54: 18/04/2018 | M54: 22/04/2018 | N54: 22/04/2018 | O54: 8 | P54: 26
D55: מנהל משרד כללי (מגמה 8123) | E55: 2018-03-27 | F55: 2018-03-27 | H55: -43186 | I55: 10/04/2018 | J55: 43200 | K55: 18/04/2018 | M55: 22/04/2018 | N55: 22/04/2018 | O55: 8 | P55: 26
D56: מנהל משרד בכיר (מגמה 8124) | E56: 2018-03-27 | F56: 2018-03-27 | H56: -43186 | I56: 10/04/2018 | J56: 43200 | K56: 18/04/2018 | M56: 22/04/2018 | N56: 22/04/2018 | O56: 8 | P56: 26
D57: מאתר לקויי בנייה (בדק בית), לבעלי רקע (מגמה 2432) | E57: 2018-05-14 | F57: 2018-05-14 | H57: -43234 | I57: 15/05/2018 | J57: 43235 | K57: 16/05/2018 | M57: 16/05/2018 | N57: 16/05/2018 | O57: 1 | P57: 2
D58: מאתר לקויי בנייה (בדק בית), לחסרי רקע (מגמה 2064) | E58: 2018-05-14 | F58: 2018-05-14 | H58: -43234 | I58: 15/05/2018 | J58: 43235 | K58: 16/05/2018 | M58: 16/05/2018 | N58: 16/05/2018 | O58: 1 | P58: 2
D59: מנהל קמפיינים ממומנים (ppc), מגמה 3483 | E59: 2018-05-14 | F59: 2018-05-14 | G59: 04/06/18 | H59: 21 | I59: 06/06/2018 | J59: 2 | K59: 07/06/2018 | M59: 07/06/2018 | N59: 07/06/2018 | O59: 1 | P59: 24
A60: 8 | B60: 2549 | C60: קמפוס השפלה - קרן רמלה לחינוך ותרבות | D60: מנהל חשבונות סוג 1+2 בסיסי ומתקדם | E60: 2018-01-02 | F60: 2018-01-04 | G60: 2018-01-07 | H60: 5 | I60: 2018-02-11 | J60: 35 | K60: 2018-02-11 | M60: 2018-02-11 | N60: 2018-02-11 | O60: 0 | P60: 40
D61: מנהל חשבונות סוג 3 ראשי | E61: 2018-01-02 | F61: 2018-01-04 | G61: 2018-01-07 | H61: 5 | I61: 2018-02-11 | J61: 35 | K61: 2018-02-11 | M61: 2018-02-12 | N61: 2018-02-12 | O61: 0 | P61: 41
D62: ניהול מערכות משרד | E62: 2018-01-02 | F62: 2018-01-04 | G62: 2018-01-07 | H62: 5 | J62: -43107 | O62: 0 | P62: -43102 | Q62: בוטל
D63: מזכירות רפואוית | E63: 2018-01-02 | F63: 2018-01-04 | G63: 2018-01-07 | H63: 5 | I63: 2018-02-11 | J63: 35 | K63: 2018-02-11 | M63: 2018-02-11 | N63: 2018-02-11 | O63: 0 | P63: 40
D64: ניהול מחסן ממוחשב | E64: 2018-01-02 | F64: 2018-01-04 | G64: 2018-01-07 | H64: 5 | I64: 2018-02-26 | J64: 50 | K64: 2018-02-27 | M64: 2018-02-27 | N64: 2018-02-27 | O64: 1 | P64: 56
D65: קניינות ורכש | E65: 2018-01-02 | F65: 2018-01-04 | G65: 2018-01-07 | H65: 5 | J65: -43107 | O65: 0 | P65: -43102 | Q65: בוטל
D66: בודק שכר מוסמך (מגמה 8061) | E66: 2018-01-02 | F66: 2018-01-04 | G66: 2018-01-07 | H66: =G66-E66 -> 5 | J66: =I66-G66 -> -43107 | O66: =K66-I66 -> 0 | P66: =N66-E66 -> -43102 | Q66: טרם הומלץ
D67: מנהל מדיה חברתית (מגמה 8104) | E67: 2018-01-02 | F67: 2018-01-04 | G67: 2018-01-07 | H67: 5 | J67: -43107 | O67: 0 | P67: -43102 | Q67: טרם הומלץ
D68: שיווק בפייסבוק (מגמה 8113) | E68: 2018-01-02 | F68: 2018-01-04 | G68: 2018-01-07 | H68: 5 | J68: -43107 | O68: 0 | P68: -43102 | Q68: טרם הומלץ
D69: איפור מקצועי | E69: 2018-01-02 | F69: 2018-01-04 | G69: 2018-01-07 | H69: 5 | I69: 03/05/2018 | J69: 116 | K69: 2018-05-03 | M69: 2018-05-03 | N69: 2018-05-03 | O69: 0 | P69: 121
D70: ספרות נשים סוג 1 | E70: 2018-01-02 | F70: 2018-01-04 | G70: 2018-01-07 | H70: 5 | J70: -43107 | O70: 0 | P70: -43102 | Q70: טרם הומלץ
D71: מטפלות\מחנכות לפעוטות במעונות יום סוג 1 (לבעלי ולחסרי רקע) | E71: 2018-01-02 | F71: 2018-01-04 | G71: 2018-01-07 | H71: 5 | I71: 2018-01-08 | J71: 1 | K71: 2018-02-11 | M71: 2018-02-11 | N71: 2018-02-11 | O71: 34 | P71: 40
D72: מטפלות\מחנכות לפעוטות במעונות יום סוג 2 | E72: 2018-01-02 | F72: 2018-01-04 | G72: 2018-01-07 | H72: 5 | I72: 2018-01-08 | J72: 1 | K72: 2018-02-11 | M72: 2018-02-11 | N72: 2018-02-11 | O72: 34 | P72: 40
A73: 9 | B73: 2550 | C73: אחיה - ללמוד שאתה יכול | D73: ניהול מחסן ממוחשב | E73: 2017-11-29 | F73: 2017-12-28 | G73: 2017-12-31 | H73: 32 | J73: -43100 | O73: 0 | P73: -43068 | Q73: מוקפא
D74: מיישם הגנת סייבר- רשתות תקשורת (מגמה 3479) | E74: 2017-11-29 | F74: 2017-12-28 | G74: 2017-12-31 | H74: 32 | I74: 2018-02-26 | J74: 57 | O74: -43157 | P74: -43068 | Q74: דחייה
D75: מטפלות\מחנכות לפעוטות במעונות יום סוג 1 (לבעלי רקע מעשי), (מגמה 955) | E75: 2017-11-29 | F75: 2017-12-28 | G75: 2017-12-31 | H75: 32 | J75: -43100 | O75: 0 | P75: -43068
D76: ניהול מלאי ורכש (מגמה 8114) | E76: 2017-11-29 | F76: 2018-02-13 | G76: 14/02/2018 | H76: 77 | I76: 21/03/2018 | J76: 35 | K76: 2018-03-25 | M76: 2018-03-25 | N76: 2018-03-25 | O76: 4 | P76: 116
D77: יבוא יצוא וסחר בינלאומי (מגמה 8084) | E77: 2017-11-29 | F77: 2018-02-13 | G77: 14/02/2018 | H77: 77 | I77: 21/03/2018 | J77: 35 | K77: 2018-03-25 | M77: 2018-03-25 | N77: 2018-03-25 | O77: 4 | P77: 116
A78: 10 | B78: 2551 | C78: דרור - בתי חינוך (המכללה למנהיגות מקצועית) | D78: מטפל קהלתי , התמחות רב תחומית בהדרכה (מגמה 966) | E78: 2017-12-17 | F78: 2018-01-11 | G78: 2018-01-11 | H78: 25 | J78: -43111 | O78: 0 | P78: -43086
A79: 11 | B79: 2552 | C79: לוי מרדכי - בה"ס להצלה בריכה וים | D79: הצלה בים | E79: 2018-01-04 | F79: 2018-01-11 | G79: 2018-01-11 | H79: 7 | I79: 2018-01-15 | J79: 4 | K79: 2018-01-15 | M79: 2018-01-16 | N79: 2018-01-16 | O79: 0 | P79: 12
A80: 12 | B80: 2553 | C80: נוימן ערן - מכללת השרון | D80: מנהל חשבונות סוג 1+2 בסיסי ומתקדם | E80: 2018-01-11 | F80: 2018-01-15 | G80: 2018-01-17 | H80: 6 | I80: 2018-01-22 | J80: 5 | K80: 2018-01-29 | M80: 2018-01-31 | N80: 2018-01-31 | O80: 7 | P80: 20
D81: מנהל חשבונות סוג 3 ראשי | E81: 2018-01-11 | F81: 2018-01-15 | G81: 2018-01-17 | H81: 6 | I81: 2018-01-22 | J81: 5 | K81: 2018-01-29 | M81: 2018-01-31 | N81: 2018-01-31 | O81: 7 | P81: 20
D82: חשבי שכר | E82: 2018-01-11 | F82: 2018-01-15 | G82: 2018-01-17 | H82: 6 | I82: 2018-01-22 | J82: 5 | K82: 2018-01-29 | M82: 2018-01-31 | N82: 2018-01-31 | O82: 7 | P82: 20
D83: מנהל מדיה חברתית (מגמה 8104) | E83: 2018-01-11 | F83: 2018-01-15 | G83: 2018-01-17 | H83: 6 | I83: 2018-01-22 | J83: 5 | K83: 2018-01-29 | M83: 2018-01-31 | N83: 2018-01-31 | O83: 7 | P83: 20
A84: 13 | B84: 2554 | C84: בית גלית איטליה בני ברק בע"מ | D84: יסודות בתספורות לפאות | E84: 2018-01-07 | F84: 2018-01-15 | G84: 2018-01-17 | H84: 10 | I84: 2018-01-29 | J84: 12 | K84: 2018-02-08 | M84: 2018-02-08 | N84: 2018-02-08 | O84: 10 | P84: 32
D85: יסודות בתסרוקות לפאות | E85: 2018-01-07 | F85: 2018-01-15 | G85: 2018-01-17 | H85: 10 | I85: 2018-01-29 | J85: 12 | K85: 2018-02-08 | M85: 2018-02-08 | N85: 2018-02-08 | O85: 10 | P85: 32
D86: איפור מקצועי | E86: 2018-01-07 | F86: 2018-01-15 | G86: 2018-01-17 | H86: 10 | I86: 2018-01-29 | J86: 12 | K86: 2018-02-08 | M86: 2018-02-08 | N86: 2018-02-08 | O86: 10 | P86: 32
A87: 14 | B87: 2555 | C87: בקול ארגון כבדי שמעיה ומתחרשים | D87: תמלול ממוחשב לכבדי שמיעה\חירשים (מגמה 8088) | E87: 2018-01-16 | F87: 2018-01-21 | G87: 2018-01-21 | H87: 5 | I87: 2018-01-23 | J87: 2 | K87: 2018-02-07 | M87: 2018-02-08 | N87: 2018-02-08 | O87: 15 | P87: 23
A88: 15 | B88: 2556 | C88: קרנליוס בע"מ | D88: מיישם הגנת סייבר (מגמה 3463) | E88: 2018-01-21 | F88: 2018-01-21 | G88: 2018-01-21 | H88: 0 | I88: 2018-01-24 | J88: 3 | K88: 2018-01-25 | M88: 2018-01-25 | N88: 2018-01-25 | O88: 1 | P88: 4
D89: מיישם הגנת סייבר ורשתות תקשורת (מגמה 3479) | E89: 2018-03-15 | F89: 2018-03-15 | G89: 2018-03-22 | H89: 7 | I89: 2018-03-25 | J89: 3 | K89: 2018-03-25 | M89: 2018-03-25 | N89: 2018-03-25 | O89: 0 | P89: 10
A90: 16 | B90: 2557 | C90: גרין ענר, ירוק ביה"ס לתקשורת חזותית | D90: ביצועיסט לתוכנות גרפיות מתקדמות (מגמה 562) | E90: 2018-01-30 | F90: 2018-01-30 | G90: 2018-02-01 | H90: 2 | I90: 2018-02-11 | J90: 10 | K90: 2018-02-11 | M90: 2018-02-11 | N90: 2018-02-11 | O90: 0 | P90: 12
D91: מעצב גרפי לדפוס (מגמה 561) | E91: 2018-01-30 | F91: 2018-01-30 | G91: 2018-02-01 | H91: 2 | I91: 2018-02-11 | J91: 10 | K91: 2018-02-11 | M91: 2018-02-11 | N91: 2018-02-11 | O91: 0 | P91: 12
A92: 17 | B92: 2558 | C92: סמינר מרכז בית יעקב למורות ולגננות פתח תקוה | D92: מנהל חשבונות סוג 1+2 בסיסי ומתקדם | E92: 2018-01-29 | F92: 2018-01-30 | G92: 2018-01-31 | H92: 2 | I92: 2018-01-31 | J92: 0 | K92: 2018-02-01 | M92: 2018-02-04 | N92: 2018-02-04 | O92: 1 | P92: 6
D93: מנהל חשבונות סוג 3 ראשי | E93: 2018-01-29 | F93: 2018-01-30 | G93: 2018-01-31 | H93: 2 | I93: 2018-01-31 | J93: 0 | K93: 2018-02-01 | M93: 2018-02-04 | N93: 2018-02-04 | O93: 1 | P93: 6
D94: גרפיקה ממוחשבת (מגמה 501) | E94: 2018-01-29 | F94: 2018-01-30 | G94: 2018-01-31 | H94: 2 | I94: 2018-02-01 | J94: 1 | K94: 2018-02-01 | M94: 2018-02-04 | N94: 2018-02-04 | O94: 0 | P94: 6
D95: צילום, וידאו ועריכה | E95: 2018-01-29 | F95: 2018-01-30 | G95: 2018-01-31 | H95: 2 | J95: -43131 | O95: 0 | P95: -43129
D96: בודקי תוכנה qa, התמחות istqb (מגמה 3403) | E96: 2018-01-29 | F96: 2018-01-30 | G96: 2018-01-31 | H96: 2 | J96: -43131 | O96: 0 | P96: -43129
D97: תמיכה טכנית בסביבה ארגונית help desk (מגמה 3453) | E97: 2018-01-29 | F97: 2018-01-30 | G97: 2018-01-31 | H97: 2 | J97: -43131 | O97: 0 | P97: -43129
A98: 18 | B98: 2559 | C98: הייקון מערכות בע"מ | D98: חשמלאי מסוייג - ייצור והרכבת מערכות אריזה דיגיטליות (מגמה 3170) | E98: 2018-01-29 | F98: 2018-01-30 | G98: 2018-01-31 | H98: 2 | I98: 16/04/2018 | J98: 75 | K98: 2018-04-17 | M98: 2018-04-18 | N98: 2018-04-18 | O98: 1 | P98: 79
A99: 19 | B99: 2560 | C99: אבשלום שיך ליאור (סטודיו אל) | D99: בניית ציפורניים | E99: 2018-01-23 | F99: 2018-01-30 | G99: 2018-01-31 | H99: 8 | I99: 2018-02-25 | J99: 25 | K99: 2018-02-26 | M99: 2018-02-27 | N99: 2018-02-27 | O99: 1 | P99: 35
D100: פדיקיור מניקיור | E100: 2018-01-23 | F100: 2018-01-30 | G100: 2018-01-31 | H100: 8 | I100: 2018-02-25 | J100: 25 | K100: 2018-02-26 | M100: 2018-02-27 | N100: 2018-02-27 | O100: 1 | P100: 35
D101: איפור מקצועי | E101: 2018-01-23 | F101: 2018-01-30 | H101: -43123 | I101: 2018-05-03 | J101: 43223 | K101: 2018-05-03 | M101: 2018-05-03 | N101: 2018-05-03 | O101: 0 | P101: 100 | Q101: '31/01/18 ומחדש 01/05/18
A102: 20 | B102: 2561 | C102: בר לאה – מרכז חרדי לעיצוב ושיזור | D102: שיזור פרחים (מגמה 2850) | E102: 2018-01-23 | F102: 2018-01-30 | G102: 2018-01-31 | H102: 8 | I102: 2018-02-06 | J102: 6 | O102: -43137 | P102: -43123 | Q102: דחייה/ ע"פ שיחה עם מפקחת, ביה"ס לא מעוניין
A103: 21 | B103: 2562 | C103: פ/ל/א/ - פאה לכל אישה | D103: בניית פאה (קאסטם), מגמה 620 | E103: 2018-02-01 | F103: 2018-02-01 | G103: 2018-02-01 | H103: 0 | I103: 2018-02-06 | J103: 5 | K103: 2018-02-08 | M103: 2018-02-11 | N103: 2018-02-11 | O103: 2 | P103: 10
A104: 22 | B104: 2563 | C104: אוניברסיטת תל אביב, ביה" למקצועות הבריאות | D104: מורשים לנגישות השירות | E104: 2018-02-01 | F104: 2018-02-01 | G104: 2018-02-01 | H104: 0 | I104: 2018-02-05 | J104: 4 | K104: 2018-02-08 | M104: 2018-02-11 | N104: 2018-02-11 | O104: 3 | P104: 10
A105: 23 | B105: 2564 | C105: מכללת רמת גן | D105: מנהל חשבונות סוג 1+2 בסיסי ומתקדם | E105: 2018-02-05 | F105: 2018-02-05 | G105: 2018-02-06 | H105: 1 | I105: 2018-02-11 | J105: 5 | K105: 2018-02-11 | M105: 2018-02-11 | N105: 2018-02-11 | O105: 0 | P105: 6
D106: מנהל חשבונות סוג 3 ראשי | E106: 2018-02-05 | F106: 2018-02-05 | G106: 2018-02-06 | H106: 1 | I106: 2018-02-11 | J106: 5 | K106: 2018-02-11 | M106: 2018-02-11 | N106: 2018-02-11 | O106: 0 | P106: 6
D107: מזכירות רפואיות | E107: 2018-02-05 | F107: 2018-02-05 | G107: 2018-02-06 | H107: 1 | I107: 2018-02-11 | J107: 5 | K107: 2018-02-11 | M107: 2018-02-11 | N107: 2018-02-11 | O107: 0 | P107: 6
D108: בודק שכר מוסמך (מגמה 8061) | E108: 2018-02-05 | F108: 2018-02-05 | G108: 2018-02-06 | H108: 1 | I108: 09/05/2018 | J108: 92 | K108: 10/05/2018 | M108: 2018-05-13 | N108: 2018-05-13 | O108: 1 | P108: 97
D109: בודק שכר מוסמך (השתלמות מעשית ליועצי מס), מגמה 8094 | E109: 2018-02-05 | F109: 2018-02-05 | G109: 2018-02-06 | H109: 1 | I109: 09/05/2018 | J109: 92 | K109: 10/05/2018 | M109: 2018-05-13 | N109: 2018-05-13 | O109: 1 | P109: 97
D110: בודק שכר מוסמך (השתלמות מעשית רואה חשבון), מגמה 8093 | E110: 2018-02-05 | F110: 2018-02-05 | G110: 2018-02-06 | H110: 1 | I110: 09/05/2018 | J110: 92 | K110: 10/05/2018 | M110: 2018-05-13 | N110: 2018-05-13 | O110: 1 | P110: 97
A111: 24 | B111: 2565 | C111: סולראדג' טכנולוגיות בע"מ | D111: חשמלאי מסוייג - ממירים ומערכות אינטגרציה ויצור (מגמה 3406) | E111: 2018-02-11 | F111: 2018-02-13 | G111: 2018-02-14 | H111: 3 | I111: 2018-02-25 | J111: 11 | K111: 2018-02-26 | M111: 2018-02-27 | N111: 2018-02-27 | O111: 1 | P111: 16
A112: 25 | B112: 2566 | C112: בזק החברה הישראלית לתקשורת בע"מ | D112: חשמלאי מסוייג - אחזקת ציוד תקשורת (מגמה 2799) | E112: 2018-02-08 | F112: 2018-02-13 | G112: 2018-02-14 | H112: 6 | I112: 16/04/2018 | J112: 61 | K112: 2018-04-16 | M112: 2018-04-17 | N112: 2018-04-17 | O112: 0 | P112: 68
D113: חשמלאי מסוייג - התקנת חיישנים במוצרי חשמל (מגמה 3177) | E113: 2018-06-11 | F113: 2018-06-11 | G113: 2018-06-12 | H113: 1 | I113: 17/06/2018 | J113: 5 | K113: 2018-06-17 | M113: 2018-06-18 | N113: 2018-06-18 | O113: 0 | P113: 7
A114: 26 | B114: 2567 | C114: לשכת המהנדסים, האדריכלים במקצועות הטכנולוגיים בישראל | D114: חשמלאי בודק סוג 1,2,3 | E114: 2018-02-05 | F114: 2018-02-13 | G114: 2018-02-14 | H114: 9 | I114: 2018-02-14 | J114: 0 | K114: 2018-02-15 | M114: 2018-02-19 | N114: 2018-02-19 | O114: 1 | P114: 14
D115: חשמלאי מתח גבוה (מגמה 2531) | E115: 2018-02-05 | F115: 2018-02-13 | G115: 2018-02-14 | H115: 9 | I115: 2018-02-14 | J115: 0 | K115: 2018-02-15 | M115: 2018-02-19 | N115: 2018-02-19 | O115: 1 | P115: 14
D116: מפקח ריתוך פלדה (התמוחת גז טבעי), מגמה 2273 | E116: 2018-02-05 | F116: 2018-02-13 | G116: 2018-02-14 | H116: 9 | J116: -43145 | O116: 0 | P116: -43136 | Q116: טרם הומלץ
D117: טכנולוגיות הריתוך בקשת חשמלית (מגמה 2314) | E117: 2018-02-05 | F117: 2018-02-13 | G117: 2018-02-14 | H117: 9 | J117: -43145 | K117: 2018-02-15 | M117: 2018-02-19 | N117: 2018-02-19 | O117: 43146 | P117: 14 | Q117: טרם הומלץ
A118: 27 | B118: 2568 | C118: שיא א/ סקיוריטי טכנולוג'יס בע"מ | D118: מיישם הגנת סייבר- רשתות תקשורת (מגמה 3479) | E118: 2018-02-07 | F118: 2018-02-14 | G118: 2018-02-15 | H118: 8 | I118: 2018-02-15 | J118: 0 | K118: 2018-02-18 | M118: 2018-02-19 | N118: 2018-02-19 | O118: 3 | P118: 12
D119: חוקר סייבר (מגמה 3470) | E119: 2018-02-07 | F119: 2018-02-14 | G119: 2018-02-15 | H119: 8 | I119: 2018-02-15 | J119: 0 | O119: -43146 | P119: -43138 | Q119: דחייה
A120: 28 | B120: 2569 | C120: החברה המרכזית לייצור משקאות קלים בע"מ (קוקה-קולה), סניף צריפין | D120: חשמלאי מסוייג - אחזקת מכונות קירור ומזיגה (מגמה 2877) | E120: 2018-02-13 | F120: 2018-02-14 | G120: 2018-02-15 | H120: 2 | I120: 2018-02-18 | J120: 3 | M120: 2018-02-19 | N120: 2018-02-19 | O120: -43149 | P120: 6
A121: 29 | B121: 2570 | C121: משרד ראש הממשלה (ביטחון) כ/ד/ | D121: חשמלאי מסוייג - תחזוקת מתקני חשמל (מגמה 3727) | E121: 2018-02-14 | F121: 2018-02-18 | G121: 2018-02-19 | H121: 5 | I121: 2018-02-25 | J121: 6 | K121: 2018-02-26 | M121: 2018-02-27 | N121: 2018-02-27 | O121: 1 | P121: 13
A122: 30 | B122: 2571 | C122: יונירום אלקטרוניקס בע"מ | D122: חשמלאי מסוייג - אחזקה והרכבה מערכות אל-פסק ומצברים (מגמה 3743) | E122: 2018-02-18 | F122: 2018-02-18 | G122: 2018-02-19 | H122: 1 | I122: 2018-02-25 | J122: 6 | K122: 2018-02-27 | M122: 2018-02-28 | N122: 2018-02-28 | O122: 2 | P122: 10
A123: 31 | B123: 2572 | C123: אי/אי/סי/ המכללה הישראלית לאנימציה בע"מ | D123: אנימציה בתלת מימד( מקוצר), מגמה 565 | E123: 2018-03-07 | F123: 2018-03-07 | G123: 2018-03-08 | H123: 1 | I123: 19/03/2018 | J123: 11 | K123: 2018-03-19 | M123: 2018-03-20 | N123: 2018-03-20 | O123: 0 | P123: 13
D124: מעצב גרפי לדפוס (מגמה 561) | E124: 2018-03-07 | F124: 2018-03-07 | G124: 2018-03-08 | H124: 1 | I124: 19/03/2018 | J124: 11 | K124: 2018-03-19 | M124: 2018-03-20 | N124: 2018-03-20 | O124: 0 | P124: 13
A125: 32 | B125: 2573 | C125: מקורות חברת מים בע"מ | D125: חשמלאי מסוייג - מפעיל משאבות (מגמה 2906) | E125: 2018-03-05 | F125: 2018-03-07 | G125: 2018-03-08 | H125: 3 | I125: 14/03/2018 | J125: 6 | K125: 2018-03-15 | M125: 2018-03-15 | N125: 2018-03-15 | O125: 1 | P125: 10
D126: חשמלאי מסוייג - אחזקת מכשור (מגמה 2905) | E126: 2018-03-05 | F126: 2018-03-07 | G126: 2018-03-08 | H126: 3 | I126: 14/03/2018 | J126: 6 | K126: 2018-03-15 | M126: 2018-03-15 | N126: 2018-03-15 | O126: 1 | P126: 10
A127: 33 | B127: 2574 | C127: יחידה 669, חיל האוויר | D127: הצלה בבריכה | E127: 2018-03-07 | F127: 2018-03-11 | G127: 2018-03-13 | H127: 6 | J127: -43172 | O127: 0 | P127: -43166 | Q127: 'נסגר אין שום תגובה מהפיקוח
A128: 34 | B128: 2575 | C128: סמינר שערי דעת לחינוך הוראה וחסד | D128: מנהל חשבונות סוג 1+2 בסיסי ומתקדם | E128: 2018-03-13 | F128: 2018-03-13 | G128: 2018-03-13 | H128: 0 | I128: 2018-03-18 | J128: 5 | K128: 2018-03-19 | M128: 2018-03-20 | N128: 2018-03-20 | O128: 1 | P128: 7
D129: מנהל חשבונות סוג 3 ראשי | E129: 2018-03-13 | F129: 2018-03-13 | G129: 2018-03-13 | H129: 0 | I129: 2018-03-18 | J129: 5 | K129: 2018-03-19 | M129: 2018-03-20 | N129: 2018-03-20 | O129: 1 | P129: 7
D130: מנהל משרד כללי + בכיר (מגמה 8125) | E130: 2018-03-13 | F130: 2018-03-13 | G130: 2018-03-13 | H130: =G130-E130 -> 0 | I130: 2018-03-18 | J130: =I130-G130 -> 5 | K130: 2018-03-19 | M130: 2018-03-20 | N130: 2018-03-20 | O130: =K130-I130 -> 1 | P130: =N130-E130 -> 7
D131: גרפיקה ממוחשבת (מגמה 501) | E131: 2018-03-13 | F131: 2018-03-13 | G131: 2018-03-13 | H131: 0 | J131: -43172 | O131: 0 | P131: -43172
D132: תמיכה טכנית בסביבה ארגונית help desk (מגמה 3453) | E132: 2018-03-13 | F132: 2018-03-13 | G132: 2018-03-13 | H132: 0 | J132: -43172 | O132: 0 | P132: -43172
D133: בדיקות תוכנה qa התמחות istqb , מגמה 3403 | E133: 2018-03-13 | F133: 2018-03-13 | G133: 2018-03-13 | H133: 0 | J133: -43172 | O133: 0 | P133: -43172
A134: 35 | B134: 2576 | C134: ספקטר מרכז להדרכת מחשבים בע"מ | D134: תחזוקת מחשבים אישיים ורשתות תקשורת (mcsa), מגמה 3420 | E134: 2018-03-18 | F134: 2018-03-21 | G134: 2018-03-22 | H134: 4 | I134: 2018-05-06 | J134: 45 | K134: 2018-05-06 | M134: 2018-05-07 | N134: 2018-05-07 | O134: 0 | P134: 50
D135: תחזוקה ותמיכה במחשבים אישיים (mcsa), מגמה 3441 | E135: 2018-03-18 | F135: 2018-03-21 | G135: 2018-03-22 | H135: 4 | I135: 2018-05-06 | J135: 45 | K135: 2018-05-06 | M135: 2018-05-07 | N135: 2018-05-07 | O135: 0 | P135: 50
D136: ניהול רשתות תקשורת (mcsa), מגמה 3419 | E136: 2018-03-18 | F136: 2018-03-21 | G136: 2018-03-22 | H136: 4 | I136: 2018-05-06 | J136: 45 | K136: 2018-05-06 | M136: 2018-05-07 | N136: 2018-05-07 | O136: 0 | P136: 50
A137: 36 | B137: 2577 | C137: נביעות - טבע הגליל בע"מ | D137: חשמלאי מסוייג - מתקיני מכונות שתיה נביעות (מגמה 3115) | E137: 2018-03-21 | F137: 2018-03-21 | G137: 2018-03-22 | H137: 1 | I137: 2018-05-31 | J137: 70 | K137: 2018-06-03 | M137: 2018-06-04 | N137: 2018-06-04 | O137: 3 | P137: 75
A138: 37 | B138: 2578 | C138: מעלות בינה (סמינר נתיב בינה) | D138: מנהל חשבונות סוג 1+2 בסיסי ומתקדם | E138: 2018-03-21 | F138: 2018-03-22 | G138: 2018-03-22 | H138: 1 | I138: 2018-03-26 | J138: 4 | K138: 2018-03-26 | M138: 2018-03-26 | N138: 2018-03-26 | O138: 0 | P138: 5
D139: מנהל חשבונות סוג 3 ראשי | E139: 2018-03-21 | F139: 2018-03-22 | G139: 2018-03-22 | H139: 1 | I139: 2018-03-26 | J139: 4 | K139: 2018-03-26 | M139: 2018-03-26 | N139: 2018-03-26 | O139: 0 | P139: 5
D140: מזכירות רפואיות | E140: 2018-03-21 | F140: 2018-03-22 | G140: 2018-03-22 | H140: 1 | I140: 2018-03-26 | J140: 4 | K140: 2018-03-26 | M140: 2018-03-26 | N140: 2018-03-26 | O140: 0 | P140: 5
A141: 38 | B141: 2579 | C141: רכבת ישראל בע"מ מרכז הדרכה | D141: חשמלאי מסוייג - אחזקת מכלולי רכבות (מגמה 2893) | E141: 2018-03-27 | F141: 2018-03-27 | G141: 2018-03-27 | H141: 0 | I141: 2018-05-02 | J141: 36 | K141: 2018-05-03 | M141: 2018-05-03 | N141: 2018-05-03 | O141: 1 | P141: 37
A142: 39 | B142: 2580 | C142: אתגר - מכללה להנדסה וטכנולוגיה מיסודה של הסתדרות ההנדסאים בישראל | D142: חשמלאי מתח גבוה (מגמה 2531) | E142: 2018-04-10 | F142: 2018-04-15 | G142: 2018-04-15 | H142: 5 | I142: 2018-04-16 | J142: 1 | K142: 2018-04-18 | M142: 2018-06-21 | N142: 2018-06-21 | O142: 2 | P142: 72
D143: חשמלאי מוסמך (מסלול מקוצר) (מגמה 1472) | E143: 2018-04-10 | F143: 2018-04-15 | G143: 2018-04-15 | H143: 5 | I143: 2018-04-16 | J143: 1 | K143: 2018-04-18 | M143: 2018-06-21 | N143: 2018-06-21 | O143: 2 | P143: 72
D144: מנהל חשבונות סוג 1+2 בסיסי ומתקדם | E144: 2018-04-10 | F144: 2018-04-15 | G144: 2018-04-15 | H144: 5 | I144: 2018-04-19 | J144: 4 | K144: 2018-04-22 | M144: 2018-06-24 | N144: 2018-06-24 | O144: 3 | P144: 75
D145: מנהל חשבונות סוג 3 ראשי | E145: 2018-04-10 | F145: 2018-04-15 | G145: 2018-04-15 | H145: 5 | I145: 2018-04-19 | J145: 4 | K145: 2018-04-22 | M145: 2018-06-24 | N145: 2018-06-24 | O145: 3 | P145: 75
D146: חשבי שכר | E146: 2018-04-10 | F146: 2018-04-15 | G146: 2018-04-15 | H146: 5 | I146: 2018-04-19 | J146: 4 | K146: 2018-04-22 | M146: 2018-06-24 | N146: 2018-06-24 | O146: 3 | P146: 75
D147: חשמלאי מוסמך (רצף ממעשי), מגמה 1450 | E147: 06/05/2018 | F147: 2018-06-25 | G147: 26/06/2018 | H147: 51 | I147: 02/07/2018 | J147: 6 | K147: 02/07/2018 | M147: 02/07/2018 | N147: 02/07/2018 | O147: 0 | P147: 57
D148: חשמלאי מוסמך (רצף/השלמה ממעשי) - מורחב (מגמה 1478) | E148: 06/05/2018 | F148: 2018-06-25 | G148: 26/06/2018 | H148: 51 | I148: 02/07/2018 | J148: 6 | K148: 02/07/2018 | M148: 02/07/2018 | N148: 02/07/2018 | O148: 0 | P148: 57
D149: חשמלאי ראשי (מגמה 1422) | E149: 06/05/2018 | F149: 2018-06-25 | G149: 26/06/2018 | H149: 51 | I149: 02/07/2018 | J149: 6 | K149: 02/07/2018 | M149: 02/07/2018 | N149: 02/07/2018 | O149: 0 | P149: 57
D150: חשמלאי ראשי (רצף ממוסמך), מגמה 2971 | E150: 06/05/2018 | F150: 2018-06-25 | G150: 26/06/2018 | H150: 51 | I150: 02/07/2018 | J150: 6 | K150: 02/07/2018 | M150: 02/07/2018 | N150: 02/07/2018 | O150: 0 | P150: 57
D151: חשמלאי ראשי (מסלול ארוך), מגמה 2582 | E151: 06/05/2018 | F151: 2018-06-25 | G151: 26/06/2018 | H151: 51 | I151: 02/07/2018 | J151: 6 | K151: 02/07/2018 | M151: 02/07/2018 | N151: 02/07/2018 | O151: 0 | P151: 57
A152: 40 | B152: 2581 | C152: העמותה לקידום מקצועי וחברתי עובדי עירית ת"א | D152: מנהל חשבונות סוג 1+2 בסיסי ומתקדם | E152: 2018-04-15 | F152: 2018-04-15 | G152: 2018-04-16 | H152: 1 | I152: 2018-04-16 | J152: 0 | K152: 2018-04-16 | M152: 2018-04-17 | N152: 2018-04-17 | O152: 0 | P152: 2
D153: מזכירות רפואיות | E153: 2018-04-15 | F153: 2018-04-15 | G153: 2018-04-16 | H153: 1 | I153: 2018-04-16 | J153: 0 | K153: 2018-04-16 | M153: 2018-04-17 | N153: 2018-04-17 | O153: 0 | P153: 2
A154: 41 | B154: 2582 | C154: אייץ' פי סאיטקס בע"מ | D154: חשמלאי מסוייג - הרכבה ותחזוקה של מכונות הדפסה (מגמה 3745) | E154: 2018-04-16 | F154: 2018-04-18 | G154: 2018-04-18 | H154: 2 | I154: 2018-05-02 | J154: 14 | K154: 2018-05-03 | M154: 2018-05-03 | N154: 2018-05-03 | O154: 1 | P154: 17
A155: 42 | B155: 2583 | C155: אורד מערכות בקרה בע"מ | D155: התקנת מערכות פוטו-וולטאיות- pv (מגמה 2974) | E155: 2018-04-23 | F155: 2018-04-24 | G155: 2018-04-24 | H155: 1 | I155: 2018-04-30 | J155: 6 | K155: 2018-05-01 | M155: 2018-05-02 | N155: 2018-05-02 | O155: 1 | P155: 9
A156: 43 | B156: 2584 | C156: שטראוס מים בע"מ | D156: חשמלאי מסוייג - תחזוקה וטיפול במכשיר תמי 4 (מגמה 2603) | E156: 2018-04-26 | F156: 2018-04-26 | G156: 2018-04-26 | H156: 0 | I156: 2018-04-30 | J156: 4 | K156: 2018-05-01 | M156: 2018-05-02 | N156: 2018-05-02 | O156: 1 | P156: 6
A157: 44 | B157: 2585 | C157: חברת מלונות דן בע"מ | D157: חשמלאי מסוייג - אחזקה והפעלת מכלולים חשמליים (מגמה 3759) | E157: 2018-03-18 | F157: 2018-05-03 | G157: 2018-05-09 | H157: 52 | I157: 2018-05-22 | J157: 13 | K157: 2018-05-24 | M157: 2018-05-27 | N157: 2018-05-27 | O157: 2 | P157: 70
A158: 45 | B158: 2586 | C158: ר/א/ איפור מקצועי בע"מ, מקום חדש | D158: איפור מקצועי | E158: 2018-05-07 | F158: 2018-05-07 | G158: 2018-05-07 | H158: 0 | I158: 2018-06-14 | J158: 38 | K158: 2018-06-18 | M158: 2018-06-18 | N158: 2018-06-18 | O158: 4 | P158: 42
D159: בניית ציפורניים | E159: 2018-05-07 | F159: 2018-05-07 | G159: 2018-05-07 | H159: 0 | I159: 2018-06-14 | J159: 38 | K159: 2018-06-18 | M159: 2018-06-18 | N159: 2018-06-18 | O159: 4 | P159: 42
D160: פדיקיור מניקיור | E160: 2018-05-07 | F160: 2018-05-07 | G160: 2018-05-07 | H160: 0 | I160: 2018-06-14 | J160: 38 | K160: 2018-06-18 | M160: 2018-06-18 | N160: 2018-06-18 | O160: 4 | P160: 42
D161: עיצוב תסרוקות | E161: 2018-05-07 | F161: 2018-05-07 | G161: 2018-05-07 | H161: 0 | I161: 2018-06-14 | J161: 38 | K161: 2018-06-18 | M161: 2018-06-18 | N161: 2018-06-18 | O161: 4 | P161: 42
D162: איפור אומנותי (מגמה 602) | E162: 2018-05-07 | F162: 2018-05-07 | G162: 2018-05-07 | H162: 0 | I162: 2018-06-14 | J162: 38 | K162: 2018-06-18 | M162: 2018-06-18 | N162: 2018-06-18 | O162: 4 | P162: 42
A163: 46 | B163: 2587 | C163: די/אס/איי/טי/ פתרונות בע"מ | D163: חשמלאי מסוייג - פיתוח מכלולים ואחזקת ציוד ייעודי (מגמה 3756) | E163: 2018-02-28 | F163: 2018-05-13 | G163: 2018-05-14 | H163: 75 | I163: 2018-05-22 | J163: 8 | K163: 2018-05-23 | M163: 2018-05-24 | N163: 2018-05-24 | O163: 1 | P163: 85
A164: 47 | B164: 2588 | C164: אמפנול תל-עד בע"מ | D164: חשמלאי מסוייג - חיווט וייצור לוחות חשמל ( מגמה 3748) | E164: 2018-05-13 | F164: 2018-05-14 | G164: 2018-05-14 | H164: 1 | I164: 2018-05-22 | J164: 8 | K164: 2018-05-24 | M164: 2018-05-27 | N164: 2018-05-27 | O164: 2 | P164: 14
A165: 48 | B165: 2589 | C165: סמינר תורני בית יעקב בני ברק | D165: מנהל חשבונות סוג 1+2 בסיסי ומתקדם | E165: 2018-05-17 | F165: 2018-05-17 | G165: 2018-05-17 | H165: 0 | I165: 2018-05-21 | J165: 4 | K165: 2018-05-22 | M165: 2018-05-23 | N165: 2018-05-23 | O165: 1 | P165: 6
D166: מנהל חשבונות סוג 3 ראשי | E166: 2018-05-17 | F166: 2018-05-17 | G166: 2018-05-17 | H166: 0 | I166: 2018-05-21 | J166: 4 | K166: 2018-05-22 | M166: 2018-05-23 | N166: 2018-05-23 | O166: 1 | P166: 6
D167: מזכירות רפואיות | E167: 2018-05-17 | F167: 2018-05-17 | G167: 2018-05-17 | H167: 0 | I167: 2018-05-21 | J167: 4 | K167: 2018-05-22 | M167: 2018-05-23 | N167: 2018-05-23 | O167: 1 | P167: 6
D168: גרפיקה ממוחשבת (מגמה 501) | E168: 2018-05-17 | F168: 2018-05-17 | G168: 2018-05-17 | H168: 0 | J168: -43237 | O168: 0 | P168: -43237 | Q168: 'אין תשובה מהפיקוח
A169: 49 | B169: 2590 | C169: נייל סטודיו ה/ כסיף בע"מ | D169: בניית ציפורניים | E169: 2018-05-31 | F169: 2018-06-03 | G169: 2018-06-03 | H169: 3 | I169: 2018-06-04 | J169: 1 | K169: 2018-06-07 | M169: 2018-06-07 | N169: 2018-06-07 | O169: 3 | P169: 7
D170: פדיקיור מניקיור | E170: 2018-05-31 | F170: 2018-06-03 | G170: 2018-06-03 | H170: 3 | I170: 2018-06-04 | J170: 1 | K170: 2018-06-07 | M170: 2018-06-07 | N170: 2018-06-07 | O170: 3 | P170: 7
A171: 50 | B171: 2591 | C171: ג'י וואן טכנולוגיות מיגון בע"מ | D171: חשמלאי מסוייג - טכנולוגיות מיגון (מגמה 2787) | E171: 2018-05-31 | F171: 2018-06-04 | G171: 2018-06-04 | H171: 4 | J171: -43255 | O171: 0 | P171: -43251
A172: 51 | B172: 2592 | C172: קריאטיב סטייל בע"מ | D172: בניית ציפורניים | E172: 2018-06-04 | F172: 2018-06-04 | G172: 2018-06-04 | H172: 0 | I172: 13/08/2018 | J172: 70 | K172: דחייה/איו ציוד מתאים | P172: -43255
A173: 52 | B173: 2593 | C173: ברייסון שיווק בע"מ | D173: בניית ציפורניים | E173: 2018-06-04 | F173: 2018-06-05 | G173: 2018-06-05 | H173: 1 | I173: 28/06/2018 | J173: 23 | K173: 2018-06-28 | M173: 2018-06-28 | N173: 2018-06-28 | O173: 0 | P173: 24
D174: פדיקיור מניקיור | E174: 2018-06-04 | F174: 2018-06-05 | G174: 2018-06-05 | H174: 1 | I174: 28/06/2018 | J174: 23 | K174: 2018-06-28 | M174: 2018-06-28 | N174: 2018-06-28 | O174: 0 | P174: 24
D175: איפור יופי מקצועי (מגמה 635) | E175: 05/07/2018 | F175: 2018-07-08 | G175: 08/07/2018 | H175: 3 | I175: 09/08/2018 | J175: 32 | K175: 09/08/2018 | M175: 14/08/2018 | N175: 14/08/2018 | O175: 0 | P175: 40
A176: 53 | B176: 2594 | C176: סמינר חסידי גור - מרכז חינוך ותרבות | D176: מנהל חשבונות סוג 1+2 בסיסי ומתקדם | E176: 2018-06-03 | F176: 2018-06-05 | G176: 2018-06-05 | H176: 2 | I176: 2018-06-06 | J176: 1 | K176: 2018-06-07 | M176: 2018-06-07 | N176: 2018-06-07 | O176: 1 | P176: 4
D177: מנהל חשבונות סוג 3 ראשי | E177: 2018-06-03 | F177: 2018-06-05 | G177: 2018-06-05 | H177: 2 | I177: 2018-06-06 | J177: 1 | K177: 2018-06-07 | M177: 2018-06-07 | N177: 2018-06-07 | O177: 1 | P177: 4
D178: מנהל משרד כללי + בכיר (מגמה 8125) | E178: 2018-06-03 | F178: 2018-06-05 | G178: 2018-06-05 | H178: 2 | I178: 2018-06-06 | J178: 1 | K178: 2018-06-07 | M178: 2018-06-07 | N178: 2018-06-07 | O178: 1 | P178: 4
D179: גרפיקה ממוחשבת (מגמה 501) | E179: 2018-06-03 | F179: 2018-06-05 | G179: 2018-06-05 | H179: 2 | J179: -43256 | O179: 0 | P179: -43254
A180: 54 | B180: 2595 | C180: ש/י/ל/ה/ פלוס בע"מ (ביה"ס שפיז) | D180: אפייה BAKERY (מגמה 1380) | E180: 2018-05-31 | F180: 2018-06-12 | G180: 2018-06-12 | H180: 12 | I180: 2018-06-21 | J180: 9 | K180: 2018-06-26 | M180: 2018-06-26 | N180: 2018-06-26 | O180: 5 | P180: 26
D181: בישול מוסדי לפעוטות במעון יום-לבעלי רקע (מגמה 1385) | E181: 2018-05-31 | F181: 2018-06-12 | G181: 2018-06-12 | H181: 12 | I181: 2018-06-21 | J181: 9 | K181: 2018-06-26 | M181: 2018-06-26 | N181: 2018-06-26 | O181: 5 | P181: 26
D182: בישול מוסדי לפעוטות במעון יום (מגמה 1386) | E182: 2018-05-31 | F182: 2018-06-12 | G182: 2018-06-12 | H182: 12 | I182: 2018-06-21 | J182: 9 | K182: 2018-06-26 | M182: 2018-06-26 | N182: 2018-06-26 | O182: 5 | P182: 26
D183: טבחות סוג 1,2,3,4,5 | E183: 2018-05-31 | F183: 2018-06-12 | G183: 2018-06-12 | H183: 12 | I183: 2018-06-21 | J183: 9 | K183: 2018-06-26 | M183: 2018-06-26 | N183: 2018-06-26 | O183: 5 | P183: 26
A184: 55 | B184: 2596 | C184: טק קריירה - מרכז הכשרה טכנולוגית | D184: תכנות ופיתוח אפליקציות web\windows (מגמה 3381) | E184: 12/06/2018 | F184: 2018-06-13 | G184: 2018-06-13 | H184: 1 | I184: 2018-06-19 | J184: 6 | K184: 2018-06-20 | M184: 2018-06-21 | N184: 2018-06-21 | O184: 1 | P184: 9
D185: מיישם הגנת סייבר (מגמה 3463) | E185: 12/06/2018 | F185: 2018-06-13 | G185: 2018-06-13 | H185: 1 | I185: 2018-06-19 | J185: 6 | K185: 2018-06-20 | M185: 2018-06-21 | N185: 2018-06-21 | O185: 1 | P185: 9
D186: מיישם הגנת סייבר- רשתות תקשורת (מגמה 3479) | E186: 12/06/2018 | F186: 2018-06-13 | G186: 2018-06-13 | H186: 1 | I186: 2018-06-19 | J186: 6 | K186: 2018-06-20 | M186: 2018-06-21 | N186: 2018-06-21 | O186: 1 | P186: 9
A187: 56 | B187: 2597 | C187: אופק אושרת , ביה"ס גרילה | D187: שיווק דיגיטלי (מגמה 8112) | E187: 2018-06-14 | F187: 2018-06-14 | G187: 2018-06-14 | H187: 0 | J187: -43265 | O187: 0 | P187: -43265 | Q187: דחייה/ מקום לא מתאים
D188: פיתוח Full Stack בטכנולוגיות ואפליקציות WEB (מגמה 3473 ) | E188: 2018-06-14 | F188: 2018-06-14 | G188: 2018-06-14 | H188: 0 | I188: 2018-07-24 | J188: 40 | O188: -43305 | P188: -43265 | Q188: דחייה/ מקום לא מתאים
A189: 57 | B189: 2598 | C189: אם/ג'י/אם/פי/ - הפורטל לניהול ואחזקה בע"מ | D189: חשמלאי מסוייג - תפעול ואחזקת ציוד חשמלי (מגמה 3183) | E189: 2018-06-18 | F189: 2018-06-19 | G189: 2018-06-19 | H189: 1 | I189: 2018-07-02 | J189: 13 | K189: 2018-07-02 | M189: 2018-07-02 | N189: 2018-07-02 | O189: 0 | P189: 14
A190: 58 | B190: 2599 | C190: ביה"ס הרשמי לברמנים בישראל בע"מ | D190: מוזגות (ברמנים) סוג 1 | E190: 2018-06-14 | F190: 2018-06-25 | G190: 2018-06-26 | H190: 12 | I190: 2018-10-10 | J190: 106 | K190: 2018-10-17 | M190: 2018-10-18 | N190: 2018-10-18 | O190: 7 | P190: 126
A191: 59 | B191: 2600 | C191: בלה טאכלוב בע"מ (נייל סטודיו רחובות) | D191: פדיקיור מניקיור | E191: 2018-07-15 | F191: 2018-07-15 | G191: 2018-07-15 | H191: 0 | I191: 2018-08-07 | J191: 23 | K191: 2018-08-08 | M191: 2018-08-09 | N191: 2018-08-09 | O191: 1 | P191: 25
D192: בניית ציפורניים | E192: 2018-07-15 | F192: 2018-07-15 | G192: 2018-07-15 | H192: 0 | I192: 2018-08-07 | J192: 23 | K192: 2018-08-08 | M192: 2018-08-09 | N192: 2018-08-09 | O192: 1 | P192: 25
A193: 60 | B193: 2601 | C193: חיל תקשוב ,יחידת לוטם,מרכז הכשרה חושן | D193: חשמלאי מסוייג - משדרי עוצמה גבוהה (מגמה 2572) | E193: 2018-08-14 | F193: 2018-08-14 | G193: 2018-08-14 | H193: 0 | I193: 2018-09-04 | J193: 21 | K193: 2018-09-05 | M193: 2018-09-06 | N193: 2018-09-06 | O193: 1 | P193: 23
A194: 61 | B194: 2602 | C194: קונה בע"מ | D194: חשמלאי מסוייג - תחזוקה מונעת למעליתנים (מגמה 2744) | E194: 2018-08-15 | F194: 2018-08-15 | G194: 2018-08-15 | H194: =G194-E194 -> 0 | I194: 2018-10-17 | J194: =I194-G194 -> 63 | K194: 2018-10-17 | M194: 2018-10-25 | N194: 2018-10-25 | O194: =K194-I194 -> 0 | P194: =N194-E194 -> 71
D195: מעליתן מוסמך (מסלול מקוצר לבעלי רקע), מגמה 2784 | E195: 2018-08-15 | F195: 2018-08-15 | G195: 2018-08-15 | H195: 0 | I195: 2018-10-17 | J195: 63 | O195: -43390 | P195: -43327
D196: מעליתן מעשי (מסלול מקוצר לבעלי רקע), מגמה 2783 | E196: 2018-08-15 | F196: 2018-08-15 | G196: 2018-08-15 | H196: 0 | I196: 2018-10-17 | J196: 63 | O196: -43390 | P196: -43327
A197: 62 | B197: 2603 | C197: אס/קיו/ לינק בע"מ | D197: מפתח קובול + MF+ ‏RPG +as400 (מגמה 3492), מסלול 24 | E197: 2018-08-14 | F197: 2018-08-15 | G197: 2018-08-15 | H197: 1 | I197: 2019-08-19 | J197: 369 | K197: 2018-08-22 | M197: 2018-08-23 | N197: 2018-08-23 | O197: -362 | P197: 9
A198: 63 | B198: 2604 | C198: הספריה המרכזית לעיוורים לבעלי לקויות קריאה | D198: תיאור קולי (מגמה 4901) | E198: 2018-08-20 | F198: 2018-08-21 | H198: -43332 | J198: 0 | M198: 2018-09-02 | N198: 2018-09-02 | O198: 0 | P198: 13
C199: טיפול בבקשות | D199: לשנת (לועז"ית) 2019 | H199: 0 | J199: 0 | O199: 0 | P199: 0
A200: 64 | B200: 2605 | C200: אספקט הדמייה בע"מ | D200: חשמלאי מסוייג - מיתוג והפעלת מערכות הדמייה(מגמה 2989) | E200: 2018-09-03 | F200: 2018-09-05 | G200: 2018-09-05 | H200: 2 | I200: 2018-10-11 | J200: 36 | K200: 2018-10-16 | M200: 2018-10-17 | N200: 2018-10-17 | O200: 5 | P200: 44
... 1067 more rows
